bitfinex-derivatives/quotes_BTCF0:USTF0_20260315
["timestamp","ask_amount","ask_price","bid_price","bid_amount"]
[1773568600542,0.01096,71866.0,71861.0,0.0014]
[1773568607346,0.01096,71866.0,71861.0,0.05578446]
[1773568607944,0.01096,71866.0,71861.0,0.0014]
[1773568608146,0.01096,71866.0,71862.0,0.0014]
[1773568611652,0.041735,71871.0,71862.0,0.0014]
[1773568615542,0.052695,71871.0,71862.0,0.0014]
[1773568615943,0.052695,71871.0,71863.0,0.0014]
[1773568617360,0.052695,71871.0,71863.0,0.05787105]
[1773568617849,0.052695,71871.0,71863.0,0.0014]
[1773568618050,0.041736,71870.0,71864.0,0.0014]
[1773568618259,0.041736,71869.0,71863.0,0.0014]
[1773568620460,0.041736,71869.0,71856.0,0.041743]
[1773568620663,0.041737,71868.0,71857.0,0.0014]
[1773568624573,0.041736,71870.0,71857.0,0.0014]
[1773568630484,0.01096,71871.0,71857.0,0.0014]
[1773568630686,0.01096,71871.0,71857.0,0.05787105]
[1773568631985,0.01096,71871.0,71859.0,0.041741]
[1773568633686,0.01096,71871.0,71859.0,0.033741]
[1773568635688,0.052695,71871.0,71857.0,0.09961305]
[1773568636374,0.052695,71871.0,71858.0,0.041742]
[1773568640691,0.052695,71871.0,71858.0,0.09821305]
[1773568641493,0.052695,71871.0,71858.0,0.08321305]
[1773568644590,0.052695,71871.0,71859.0,0.05221668]
[1773568648984,0.01096,71871.0,71861.0,0.03174]
[1773568649194,0.01096,71871.0,71859.0,0.09395768]
[1773568649389,0.01096,71871.0,71860.0,0.05221668]
[1773568649992,0.052695,71871.0,71860.0,0.05221668]
[1773568655897,0.041736,71870.0,71860.0,0.05221668]
[1773568656093,0.041737,71868.0,71857.0,0.0014]
[1773568656494,0.041735,71870.0,71857.0,0.0014]
[1773568656995,0.041735,71870.0,71857.0,0.05361668]
[1773568658601,0.041735,71870.0,71857.0,0.09535868]
[1773568663291,0.041735,71870.0,71858.0,0.05221668]
[1773568684322,0.041735,71870.0,71859.0,0.04601906]
[1773568687618,0.01096,71871.0,71860.0,0.041741]
[1773568687825,0.01096,71871.0,71861.0,0.04601906]
[1773568691830,0.4168758,71882.0,71867.0,0.04601906]
[1773568692034,0.0014,71892.0,71871.0,0.04601906]
[1773568692328,0.0481484,71900.0,71874.0,0.041732]
[1773568692535,0.041724,71890.0,71875.0,0.04601906]
[1773568693327,0.043122,71893.0,71875.0,0.04601906]
[1773568694431,0.0481484,71900.0,71878.0,0.04601906]
[1773568694633,0.001,71890.0,71879.0,0.04173]
[1773568695235,0.041723,71892.0,71879.0,0.04173]
[1773568696028,0.041723,71892.0,71879.0,0.04313]
[1773568696330,0.042723,71892.0,71879.0,0.04313]
[1773568696932,0.053683,71892.0,71879.0,0.04313]
[1773568697838,0.052683,71892.0,71879.0,0.04313]
[1773568698931,0.052683,71892.0,71879.0,0.08914906]
[1773568700034,0.052683,71892.0,71879.0,0.06414906]
[1773568704434,0.041723,71891.0,71879.0,0.06414906]
[1773568705433,0.01096,71892.0,71874.0,0.0467487]
[1773568705639,0.041729,71881.0,71874.0,0.0014]
[1773568705838,0.041728,71883.0,71873.0,0.0014]
[1773568707641,0.052688,71883.0,71873.0,0.0014]
[1773568709541,0.052688,71883.0,71870.0,0.0014]
[1773568709542,0.01096,71883.0,71870.0,0.0014]
[1773568711046,0.041731,71878.0,71870.0,0.0014]
[1773568711545,0.041731,71877.0,71870.0,0.0014]
[1773568711947,0.01096,71883.0,71870.0,0.0014]
[1773568713954,0.041732,71877.0,71870.0,0.0014]
[1773568714450,0.041732,71876.0,71870.0,0.0014]
[1773568714852,0.041732,71876.0,71868.0,0.0014]
[1773568715647,0.041733,71875.0,71864.0,0.0014]
[1773568716652,0.0014,71880.0,71864.0,0.0014]
[1773568716949,0.0014,71880.0,71865.0,0.0014]
[1773568717955,0.041733,71874.0,71865.0,0.0014]
[1773568718153,0.01096,71875.0,71865.0,0.00023591]
[1773568720055,0.041734,71872.0,71865.0,0.00023591]
[1773568747466,0.041735,71871.0,71865.0,0.00023591]
[1773568751277,0.041735,71871.0,71858.0,0.041742]
[1773568751480,0.041735,71871.0,71862.0,0.0014]
[1773568751678,0.02202476,71874.0,71862.0,0.0014]
[1773568753178,0.01096,71875.0,71862.0,0.0014]
[1773568753179,0.041735,71871.0,71862.0,0.0014]
[1773568770394,0.01503362,71868.0,71844.0,0.04203855]
[1773568770699,0.08715895,71860.0,71844.0,0.04315]
[1773568771797,0.01505545,71862.0,71844.0,0.04315]
[1773568771995,0.041743,71857.0,71844.0,0.04315]
[1773568773198,0.041743,71857.0,71839.0,0.04203855]
[1773568773199,0.01505545,71862.0,71839.0,0.04203855]
[1773568773502,0.09107234,71860.0,71840.0,0.0014]
[1773568773703,0.01097,71857.0,71839.0,0.04203855]
[1773568773997,0.01097,71857.0,71840.0,0.0014]
[1773568774407,0.01097,71857.0,71839.0,0.04203855]
[1773568774705,0.01097,71857.0,71840.0,0.0014]
[1773568775004,0.041745,71853.0,71841.0,0.0014]
[1773568775403,0.041745,71853.0,71839.0,0.08379155]
[1773568775703,0.041745,71853.0,71840.0,0.0014]
[1773568775899,0.041745,71853.0,71839.0,0.08379155]
[1773568776107,0.041745,71853.0,71840.0,0.0014]
[1773568776499,0.041745,71853.0,71839.0,0.08379155]
[1773568776705,0.041746,71852.0,71841.0,0.0014]
[1773568777002,0.041746,71852.0,71839.0,0.08379155]
[1773568777307,0.01097,71857.0,71842.0,0.0014]
[1773568777308,0.041747,71851.0,71842.0,0.0014]
[1773568777510,0.041747,71851.0,71839.0,0.04203855]
[1773568777706,0.041747,71851.0,71843.0,0.0014]
[1773568778005,0.041747,71851.0,71839.0,0.04203855]
[1773568778006,0.041747,71851.0,71842.0,0.0014]
[1773568779707,0.041747,71851.0,71838.0,0.041753]
[1773568779909,0.041747,71851.0,71842.0,0.0014]
[1773568780204,0.041747,71851.0,71838.0,0.041753]
[1773568780406,0.041748,71848.0,71835.0,0.09476355]
[1773568780709,0.041748,71848.0,71836.0,0.0014]
[1773568780912,0.041748,71848.0,71835.0,0.09476355]
[1773568780913,0.00372803,71856.0,71835.0,0.05300855]
[1773568781108,0.041749,71846.0,71836.0,0.0014]
[1773568781703,0.041751,71844.0,71836.0,0.0014]
[1773568782212,0.0014,71856.0,71835.0,0.01097]
[1773568782407,0.041751,71844.0,71835.0,0.01237]
[1773568782798,0.041751,71844.0,71835.0,0.01097]
[1773568782999,0.041751,71843.0,71835.0,0.01237]
[1773568783400,0.041751,71843.0,71835.0,0.0014]
[1773568784799,0.052721,71843.0,71835.0,0.0014]
[1773568789515,0.01097,71843.0,71835.0,0.0014]
[1773568790919,0.01097,71843.0,71834.0,0.041756]
[1773568795812,0.01097,71843.0,71831.0,0.00209608]
[1773568797217,0.01097,71843.0,71831.0,0.00069608]
[1773568798025,0.01097,71843.0,71832.0,0.041757]
[1773568800225,0.01097,71843.0,71831.0,0.00069608]
[1773568800525,0.054121,71843.0,71831.0,0.00069608]
[1773568801320,0.041752,71842.0,71831.0,0.00069608]
[1773568802329,0.01097,71843.0,71834.0,0.08335505]
[1773568802524,0.01097,71843.0,71835.0,0.04159905]
[1773568806323,0.4168758,71854.0,71831.0,0.00209608]
[1773568806531,0.0014,71860.0,71849.0,0.08314]
[1773568806734,0.0014,71860.0,71849.0,0.041393]
[1773568806735,0.0014,71859.0,71849.0,0.041393]
[1773568807024,0.041741,71860.0,71849.0,0.041393]
[1773568807229,0.5189973,71884.0,71852.0,0.04130533]
[1773568807531,0.93228639,71896.0,71852.0,0.04130533]
[1773568807532,0.0014,71879.0,71852.0,0.04130533]
[1773568807733,0.0014,71878.0,71852.0,0.04130533]
[1773568808330,0.001,71859.0,71852.0,0.04130533]
[1773568808524,0.001,71859.0,71852.0,0.041745]
[1773568808832,0.041738,71866.0,71854.0,0.04142211]
[1773568812743,0.01096,71866.0,71850.0,0.088634]
[1773568812946,0.0014,71874.0,71860.0,0.0397807]
[1773568813136,0.0014,71875.0,71860.0,0.0397807]
[1773568813337,0.041739,71864.0,71850.0,0.0014]
[1773568813741,0.041739,71864.0,71845.0,0.0397807]
[1773568814043,0.04174,71862.0,71848.0,0.041748]
[1773568814243,0.03802411,71865.0,71847.0,0.0014]
[1773568814449,0.087234,71860.0,71847.0,0.0014]
[1773568814646,0.041745,71853.0,71841.0,0.0397807]
[1773568815140,0.0014,71861.0,71842.0,0.0014]
[1773568815346,0.0014,71861.0,71841.0,0.0397807]
[1773568815347,0.041746,71851.0,71841.0,0.0397807]
[1773568815944,0.12795811,71860.0,71841.0,0.0397807]
[1773568816439,0.12795811,71860.0,71842.0,0.0014]
[1773568817445,0.03802411,71859.0,71842.0,0.0014]
[1773568817645,0.03802411,71859.0,71840.0,0.041753]
[1773568817952,0.03802411,71859.0,71841.0,0.0014]
[1773568818138,0.041746,71853.0,71840.0,0.041753]
[1773568818344,0.041746,71853.0,71839.0,0.01097]
[1773568818345,0.041746,71852.0,71841.0,0.0014]
[1773568818643,0.041746,71852.0,71839.0,0.01097]
[1773568818848,0.041746,71852.0,71840.0,0.043153]
[1773568819148,0.041745,71854.0,71840.0,0.041753]
[1773568819342,0.041745,71854.0,71841.0,0.043152]
[1773568819752,0.041745,71854.0,71841.0,0.041752]
[1773568819938,0.041745,71854.0,71842.0,0.0014]
[1773568821637,0.041745,71854.0,71841.0,0.043152]
[1773568822050,0.041745,71854.0,71841.0,0.041752]
[1773568822250,0.041745,71854.0,71841.0,0.043152]
[1773568823644,0.041745,71854.0,71841.0,0.041752]
[1773568823850,0.041745,71854.0,71841.0,0.043152]
[1773568824453,0.041745,71854.0,71842.0,0.041751]
[1773568825755,0.041744,71856.0,71842.0,0.041751]
[1773568826252,0.041744,71855.0,71842.0,0.041751]
[1773568828456,0.041745,71854.0,71842.0,0.041751]
[1773568831653,0.03802411,71859.0,71841.0,0.0014]
[1773568832162,0.03802411,71859.0,71839.0,0.01097]
[1773568832163,0.041747,71850.0,71839.0,0.01097]
[1773568832356,0.041746,71852.0,71840.0,0.0014]
[1773568832861,0.041747,71851.0,71841.0,0.0014]
[1773568833860,0.0027,71850.0,71841.0,0.0014]
[1773568834254,0.0027,71850.0,71840.0,0.041752]
[1773568834559,0.0027,71850.0,71841.0,0.0014]
[1773568834750,0.0027,71850.0,71841.0,0.04020088]
[1773568834950,0.0027,71850.0,71841.0,0.08195288]
[1773568835157,0.0027,71850.0,71842.0,0.03880088]
[1773568836862,0.0027,71850.0,71842.0,0.08055188]
[1773568838148,0.41606337,71871.0,71844.0,0.04175]
[1773568838460,0.0014,71870.0,71857.0,0.03880088]
[1773568838651,0.041738,71867.0,71857.0,0.03880088]
[1773568838849,0.041738,71866.0,71857.0,0.03880088]
[1773568839466,0.041738,71866.0,71860.0,0.01096]
[1773568840159,0.41606337,71879.0,71861.0,0.03880088]
[1773568840458,0.0014,71878.0,71861.0,0.03380088]
[1773568841756,0.41606337,71883.0,71861.0,0.03380088]
[1773568841961,0.001,71878.0,71861.0,0.03380088]
[1773568842363,0.0014,71877.0,71861.0,0.03380088]
[1773568842862,0.0014,71876.0,71861.0,0.03380088]
[1773568843158,0.041736,71869.0,71858.0,0.0014]
[1773568843356,0.0014,71876.0,71858.0,0.0014]
[1773568843665,0.0014,71876.0,71859.0,0.01096]
[1773568844265,0.041737,71868.0,71859.0,0.01096]
[1773568846563,0.041737,71868.0,71858.0,0.04020088]
[1773568847460,0.041737,71867.0,71858.0,0.04020088]
[1773568847959,0.041737,71867.0,71859.0,0.01096]
[1773568853073,0.041736,71869.0,71859.0,0.01096]
[1773568853374,0.041736,71869.0,71859.0,0.00296]
[1773568853875,0.041735,71871.0,71859.0,0.040699]
[1773568854674,0.041735,71870.0,71859.0,0.040699]
[1773568856266,0.001,71871.0,71859.0,0.040699]
[1773568856267,0.041736,71869.0,71859.0,0.040699]
[1773568857366,0.04174,71863.0,71850.0,0.079485]
[1773568857673,0.0014,71867.0,71850.0,0.037739]
[1773568858176,0.042736,71870.0,71857.0,0.037739]
[1773568858371,0.041736,71870.0,71858.0,0.037739]
[1773568858568,0.041736,71869.0,71858.0,0.037739]
[1773568859375,0.03938385,71872.0,71856.0,0.0014]
[1773568860166,0.041738,71866.0,71856.0,0.0014]
[1773568860370,0.03938385,71872.0,71847.0,0.037739]
[1773568860371,0.03798385,71867.0,71852.0,0.041745]
[1773568860580,0.041738,71866.0,71853.0,0.041745]
[1773568860973,0.0014,71865.0,71853.0,0.041745]
[1773568861474,0.03938385,71865.0,71847.0,0.039139]
[1773568862381,0.041742,71859.0,71847.0,0.0014]
[1773568862878,0.041743,71858.0,71847.0,0.0014]
[1773568863185,0.03938385,71865.0,71846.0,0.01097]
[1773568863378,0.041741,71860.0,71847.0,0.0014]
[1773568864276,0.03938385,71865.0,71847.0,0.0014]
[1773568864667,0.03938385,71865.0,71843.0,0.037739]
[1773568864979,0.03938385,71865.0,71844.0,0.0014]
[1773568864980,0.03798385,71860.0,71844.0,0.0014]
[1773568865180,0.03798385,71864.0,71839.0,0.01097]
[1773568865373,0.03798385,71864.0,71842.0,0.0014]
[1773568865770,0.041745,71853.0,71842.0,0.0014]
[1773568865975,0.041745,71853.0,71841.0,0.0014]
[1773568866679,0.0014,71857.0,71839.0,0.01097]
[1773568866881,0.041746,71852.0,71840.0,0.0014]
[1773568867080,0.041745,71854.0,71841.0,0.037739]
[1773568867268,0.041741,71861.0,71849.0,0.037739]
[1773568867483,0.41606337,71877.0,71848.0,0.037739]
[1773568867677,0.041739,71864.0,71848.0,0.037739]
[1773568868180,0.041739,71864.0,71847.0,0.0014]
[1773568868384,0.04174,71863.0,71851.0,0.037739]
[1773568869276,0.04174,71862.0,71851.0,0.037739]
[1773568869577,0.041743,71857.0,71847.0,0.0014]
[1773568870384,0.041742,71859.0,71847.0,0.0014]
[1773568870583,0.041742,71859.0,71846.0,0.041749]
[1773568870786,0.0014,71874.0,71856.0,0.037739]
[1773568870980,0.0014,71874.0,71857.0,0.039139]
[1773568871178,0.041737,71868.0,71857.0,0.039139]
[1773568872180,0.041737,71867.0,71857.0,0.039139]
[1773568877491,0.0014,71873.0,71857.0,0.039139]
[1773568877690,0.041737,71868.0,71857.0,0.039139]
[1773568878595,0.041737,71867.0,71857.0,0.039139]
[1773568880391,0.0014,71873.0,71857.0,0.039139]
[1773568880792,0.03798385,71878.0,71857.0,0.039139]
[1773568881091,0.03938385,71877.0,71857.0,0.039139]
[1773568881292,0.03798385,71877.0,71857.0,0.039139]
[1773568881492,0.0014,71876.0,71857.0,0.039139]
[1773568881884,0.0014,71875.0,71857.0,0.039139]
[1773568882081,0.001,71878.0,71858.0,0.03625312]
[1773568882893,0.041734,71873.0,71860.0,0.041741]
[1773568883094,0.041734,71873.0,71861.0,0.03625312]
[1773568885290,0.041736,71870.0,71858.0,0.041742]
[1773568886282,0.041736,71869.0,71857.0,0.043142]
[1773568886484,0.01096,71868.0,71857.0,0.043142]
[1773568887192,0.041737,71867.0,71857.0,0.0014]
[1773568887400,0.01096,71868.0,71858.0,0.041742]
[1773568888089,0.01096,71868.0,71859.0,0.03625312]
[1773568888683,0.041735,71871.0,71859.0,0.03625312]
[1773568888888,0.041734,71872.0,71859.0,0.03625312]
[1773568890006,0.01096,71870.0,71860.0,0.041741]
[1773568890194,0.01096,71870.0,71860.0,0.07799412]
[1773568890398,0.01096,71870.0,71862.0,0.03625312]
[1773568890794,0.052695,71870.0,71857.0,0.043143]
[1773568890999,0.041736,71869.0,71858.0,0.0014]
[1773568891299,0.041737,71868.0,71858.0,0.0014]
[1773568891697,0.052695,71870.0,71858.0,0.0014]
[1773568892102,0.041735,71870.0,71858.0,0.0014]
[1773568893003,0.041734,71872.0,71858.0,0.0014]
[1773568893604,0.01096,71870.0,71858.0,0.0014]
[1773568894100,0.01096,71870.0,71859.0,0.041741]
[1773568894499,0.01096,71870.0,71860.0,0.041741]
[1773568895000,0.01096,71870.0,71861.0,0.04174]
[1773568895203,0.01096,71870.0,71858.0,0.03765312]
[1773568895406,0.01096,71870.0,71859.0,0.03625312]
[1773568896491,0.041733,71875.0,71859.0,0.03625312]
[1773568897407,0.041733,71875.0,71863.0,0.07799212]
[1773568897998,0.03477599,71875.0,71863.0,0.07799212]
[1773568898709,0.03477599,71875.0,71863.0,0.06699212]
[1773568899205,0.03477599,71875.0,71868.0,0.01096]
[1773568899801,0.01096,71870.0,71868.0,0.01096]
[1773568901517,0.03477599,71875.0,71868.0,0.01096]
[1773568901812,0.03477599,71875.0,71863.0,0.06699212]
[1773568902402,0.03477599,71875.0,71864.0,0.03625312]
[1773568902601,0.03477599,71875.0,71865.0,0.03765312]
[1773568903408,0.041732,71877.0,71865.0,0.03765312]
[1773568903611,0.041732,71876.0,71865.0,0.03765312]
[1773568904208,0.041733,71875.0,71865.0,0.03765312]
[1773568906402,0.041732,71877.0,71866.0,0.03765312]
[1773568907211,0.041732,71877.0,71866.0,0.0014]
[1773568908612,0.041732,71877.0,71867.0,0.03625312]
[1773568908816,0.01096,71884.0,71867.0,0.03625312]
[1773568909112,0.01096,71884.0,71873.0,0.041733]
[1773568909706,0.041727,71885.0,71873.0,0.041733]
[1773568909908,0.041727,71885.0,71873.0,0.043133]
[1773568910106,0.041727,71884.0,71873.0,0.043133]
[1773568912411,0.041727,71884.0,71874.0,0.03307864]
[1773568914207,0.01096,71894.0,71874.0,0.03307864]
[1773568914208,0.041726,71886.0,71875.0,0.041732]
[1773568914408,0.041726,71886.0,71874.0,0.03307864]
[1773568915118,0.041724,71890.0,71877.0,0.041731]
[1773568915319,0.0014,71892.0,71880.0,0.041729]
[1773568915517,0.0014,71893.0,71879.0,0.04173]
[1773568915921,0.0014,71893.0,71880.0,0.0014]
[1773568916220,0.041724,71890.0,71880.0,0.0014]
[1773568916613,0.001,71893.0,71880.0,0.0014]
[1773568917813,0.002,71893.0,71880.0,0.0014]
[1773568918114,0.042722,71893.0,71882.0,0.041728]
[1773568918310,0.042722,71893.0,71880.0,0.043129]
[1773568918311,0.041722,71893.0,71880.0,0.043129]
[1773568919113,0.042722,71893.0,71880.0,0.043129]
[1773568919521,0.041723,71892.0,71880.0,0.043129]
[1773568920721,0.041723,71892.0,71881.0,0.041729]
[1773568921216,0.041722,71894.0,71882.0,0.041728]
[1773568922120,0.041722,71894.0,71880.0,0.0014]
[1773568922121,0.041722,71894.0,71883.0,0.041728]
[1773568923419,0.041722,71893.0,71881.0,0.07480764]
[1773568925423,0.041722,71893.0,71881.0,0.041729]
[1773568926422,0.041723,71892.0,71881.0,0.041729]
[1773568927012,0.03512428,71897.0,71880.0,0.0014]
[1773568927416,0.03372428,71891.0,71877.0,0.0014]
[1773568927617,0.041727,71884.0,71877.0,0.0014]
[1773568927818,0.03372428,71891.0,71877.0,0.0014]
[1773568928217,0.041728,71884.0,71876.0,0.0014]
[1773568929326,0.041728,71883.0,71876.0,0.0014]
[1773568929522,0.041729,71882.0,71876.0,0.0014]
[1773568929726,0.04173,71880.0,71874.0,0.0014]
[1773568929916,0.04173,71880.0,71871.0,0.0014]
[1773568930121,0.041729,71882.0,71871.0,0.0014]
[1773568930322,0.041729,71881.0,71871.0,0.0014]
[1773568931222,0.041729,71881.0,71871.0,0.0024]
[1773568931630,0.041729,71881.0,71871.0,0.0014]
[1773568933631,0.03512428,71887.0,71866.0,0.01096]
[1773568933831,0.03372428,71886.0,71867.0,0.0014]
[1773568934231,0.03372428,71886.0,71866.0,0.052697]
[1773568934232,0.03372428,71886.0,71868.0,0.0014]
[1773568935038,0.04173,71879.0,71868.0,0.0014]
[1773568935339,0.01096,71891.0,71869.0,0.03307864]
[1773568935519,0.041725,71888.0,71875.0,0.041732]
[1773568936125,0.01096,71891.0,71876.0,0.03447864]
[1773568936328,0.01096,71891.0,71877.0,0.0014]
[1773568936528,0.01096,71891.0,71878.0,0.0014]
[1773568936823,0.01096,71891.0,71879.0,0.0014]
[1773568937024,0.04468428,71891.0,71873.0,0.041733]
[1773568937328,0.041726,71886.0,71874.0,0.043133]
[1773568937530,0.041726,71886.0,71874.0,0.041733]
[1773568937724,0.041726,71886.0,71875.0,0.0014]
[1773568943841,0.041725,71888.0,71875.0,0.043132]
[1773568944033,0.041725,71888.0,71876.0,0.041731]
[1773568944634,0.041726,71887.0,71876.0,0.031731]
[1773568945627,0.041726,71887.0,71875.0,0.0014]
[1773568947139,0.041726,71887.0,71875.0,0.043132]
[1773568956344,0.01096,71891.0,71875.0,0.0014]
[1773568956543,0.01096,71891.0,71876.0,0.03336987]
[1773568958050,0.01096,71891.0,71880.0,0.041729]
[1773568958644,0.01096,71891.0,71880.0,0.07509887]
[1773568958849,0.041723,71892.0,71880.0,0.07509887]
[1773568959749,0.041723,71892.0,71880.0,0.041729]
[1773568960946,0.041723,71891.0,71878.0,0.04173]
[1773568961348,0.041724,71890.0,71878.0,0.04173]
[1773568961547,0.03196624,71895.0,71875.0,0.0014]
[1773568962246,0.03196624,71886.0,71875.0,0.0014]
[1773568962555,0.041727,71885.0,71875.0,0.0014]
[1773568963655,0.041727,71885.0,71873.0,0.041733]
[1773568963855,0.041727,71885.0,71874.0,0.0014]
[1773568964244,0.041727,71885.0,71875.0,0.0014]
[1773568964648,0.041727,71885.0,71873.0,0.041733]
[1773568964856,0.041727,71885.0,71874.0,0.0014]
[1773568965261,0.041727,71885.0,71875.0,0.0014]
[1773568965664,0.041727,71885.0,71873.0,0.041733]
[1773568965864,0.041727,71885.0,71874.0,0.0014]
[1773568966264,0.041727,71885.0,71873.0,0.041733]
[1773568966463,0.041727,71885.0,71874.0,0.0014]
[1773568966768,0.041727,71885.0,71873.0,0.041733]
[1773568966967,0.041727,71885.0,71874.0,0.0014]
[1773568967361,0.041727,71885.0,71875.0,0.0014]
[1773568969068,0.041727,71885.0,71872.0,0.041734]
[1773568969369,0.03196624,71884.0,71870.0,0.0014]
[1773568969560,0.04173,71879.0,71870.0,0.0014]
[1773568969755,0.041731,71878.0,71870.0,0.0014]
[1773568969963,0.041731,71878.0,71867.0,0.041737]
[1773568970468,0.041731,71878.0,71868.0,0.0014]
[1773568970766,0.041731,71878.0,71866.0,0.01096]
[1773568970960,0.041731,71878.0,71867.0,0.0014]
[1773568971361,0.041731,71878.0,71866.0,0.01096]
[1773568971362,0.041731,71878.0,71868.0,0.0014]
[1773568971766,0.041731,71878.0,71866.0,0.052697]
[1773568971970,0.03196624,71880.0,71867.0,0.0014]
[1773568972358,0.041732,71877.0,71867.0,0.0014]
[1773568974168,0.041735,71871.0,71859.0,0.041741]
[1773568974367,0.03181776,71876.0,71860.0,0.0014]
[1773568974559,0.041734,71873.0,71861.0,0.04174]
[1773568975063,0.03181776,71876.0,71860.0,0.0014]
[1773568975964,0.041735,71871.0,71860.0,0.0014]
[1773568976464,0.041735,71870.0,71864.0,0.01096]
[1773568977173,0.01096,71867.0,71864.0,0.01096]
[1773568977366,0.01096,71867.0,71864.0,0.00741453]
[1773568979779,0.041734,71872.0,71860.0,0.0014]
[1773568980277,0.041735,71871.0,71860.0,0.0014]
[1773568981881,0.00354,71868.0,71860.0,0.0014]
[1773568983383,0.041735,71871.0,71860.0,0.0014]
[1773568984286,0.03181776,71876.0,71860.0,0.0014]
[1773568984480,0.041735,71871.0,71860.0,0.0014]
[1773568984680,0.00709,71868.0,71860.0,0.0014]
[1773568990489,0.00709,71868.0,71861.0,0.0014]
[1773568991284,0.03890776,71868.0,71861.0,0.0014]
[1773568992385,0.03890776,71868.0,71849.0,0.01097]
[1773568992690,0.03890776,71868.0,71854.0,0.041744]
[1773568992691,0.07355576,71866.0,71854.0,0.041744]
[1773568992893,0.07355576,71866.0,71855.0,0.0014]
[1773568993282,0.03181776,71865.0,71856.0,0.0014]
[1773568993483,0.03181776,71865.0,71857.0,0.0014]
[1773568993792,0.03181776,71865.0,71854.0,0.03370567]
[1773568993991,0.03181776,71865.0,71858.0,0.0014]
[1773568994286,0.041738,71866.0,71858.0,0.0014]
[1773568996195,0.041738,71866.0,71854.0,0.03370567]
[1773568996497,0.041738,71866.0,71858.0,0.0014]
[1773568996690,0.041738,71866.0,71854.0,0.03370567]
[1773568996891,0.041738,71866.0,71858.0,0.0014]
[1773568997196,0.041738,71866.0,71854.0,0.03370567]
[1773568997495,0.041738,71866.0,71858.0,0.0014]
[1773568997695,0.041738,71866.0,71854.0,0.03370567]
[1773568997897,0.041738,71866.0,71858.0,0.0014]
[1773568998194,0.041738,71865.0,71852.0,0.041745]
[1773568998396,0.041738,71865.0,71853.0,0.0014]
[1773568998695,0.041738,71865.0,71854.0,0.0014]
[1773568999100,0.041738,71865.0,71855.0,0.0014]
[1773568999593,0.041738,71865.0,71856.0,0.0014]
[1773568999996,0.03535776,71868.0,71857.0,0.0014]
[1773569000192,0.00354,71868.0,71846.0,0.01097]
[1773569000400,0.00354,71868.0,71849.0,0.041747]
[1773569000401,0.03181776,71867.0,71849.0,0.041747]
[1773569000797,0.03181776,71867.0,71850.0,0.0014]
[1773569001186,0.041741,71861.0,71850.0,0.0014]
[1773569001387,0.041741,71861.0,71846.0,0.01097]
[1773569001388,0.03181776,71860.0,71846.0,0.01097]
[1773569001594,0.041743,71857.0,71847.0,0.0014]
[1773569003493,0.041744,71856.0,71848.0,0.0014]
[1773569005891,0.041738,71866.0,71848.0,0.03236159]
[1773569006201,0.0014,71866.0,71848.0,0.03236159]
[1773569006593,0.0014,71865.0,71848.0,0.043148]
[1773569006894,0.041739,71864.0,71850.0,0.041746]
[1773569007097,0.041739,71864.0,71852.0,0.041746]
[1773569007298,0.043139,71864.0,71852.0,0.041746]
[1773569007702,0.041739,71864.0,71852.0,0.041746]
[1773569008000,0.043139,71864.0,71852.0,0.041746]
[1773569009506,0.04174,71863.0,71850.0,0.041747]
[1773569009800,0.04174,71863.0,71851.0,0.041746]
[1773569010104,0.0014,71864.0,71848.0,0.0014]
[1773569010405,0.043139,71864.0,71848.0,0.0014]
[1773569011408,0.04174,71863.0,71850.0,0.041746]
[1773569011707,0.02868146,71863.0,71849.0,0.041747]
[1773569011909,0.07042346,71859.0,71848.0,0.0014]
[1773569012499,0.07042346,71859.0,71848.0,0.043148]
[1773569012500,0.02868146,71859.0,71848.0,0.043148]
[1773569014407,0.02868146,71859.0,71849.0,0.041747]
[1773569014608,0.043141,71861.0,71849.0,0.041747]
[1773569020306,0.041741,71860.0,71849.0,0.041747]
[1773569020705,0.0014,71861.0,71850.0,0.041747]
[1773569021024,0.0014,71861.0,71848.0,0.0014]
[1773569021319,0.0014,71861.0,71849.0,0.03096159]
[1773569021926,0.0014,71861.0,71848.0,0.0014]
[1773569023012,0.0014,71861.0,71850.0,0.041746]
[1773569029620,0.041741,71860.0,71848.0,0.043148]
[1773569030233,0.03008146,71861.0,71848.0,0.0014]
[1773569030433,0.041744,71855.0,71848.0,0.0014]
[1773569031321,0.041744,71856.0,71848.0,0.0014]
[1773569032126,0.041744,71855.0,71848.0,0.0014]
[1773569032331,0.041744,71855.0,71843.0,0.041751]
[1773569032720,0.41606337,71863.0,71840.0,0.0014]
[1773569032926,0.0014,71862.0,71844.0,0.02976372]
[1773569033123,0.041743,71857.0,71846.0,0.041749]
[1773569034034,0.041743,71857.0,71844.0,0.07151372]
[1773569034235,0.083487,71857.0,71844.0,0.07151372]
[1773569034437,0.083487,71857.0,71844.0,0.04175]
[1773569034737,0.083487,71857.0,71846.0,0.02976372]
[1773569037127,0.083487,71857.0,71845.0,0.041749]
[1773569040240,0.083487,71857.0,71843.0,0.041751]
[1773569040241,0.041744,71856.0,71843.0,0.041751]
[1773569040538,0.041744,71855.0,71843.0,0.041751]
[1773569041238,0.07033545,71857.0,71844.0,0.04175]
[1773569041239,0.083487,71857.0,71844.0,0.04175]
[1773569041541,0.02645412,71854.0,71845.0,0.02976372]
[1773569042339,0.02645412,71854.0,71845.0,0.07151272]
[1773569046145,0.00354,71868.0,71845.0,0.02976372]
[1773569046348,0.0014,71867.0,71848.0,0.02976372]
[1773569046548,0.02859145,71874.0,71850.0,0.02976372]
[1773569046750,0.0014,71873.0,71851.0,0.03116372]
[1773569047046,0.0014,71872.0,71851.0,0.03116372]
[1773569047242,0.02859145,71874.0,71851.0,0.03116372]
[1773569047445,0.0014,71876.0,71863.0,0.07150272]
[1773569047648,0.001,71874.0,71864.0,0.02976372]